[Event "*** Titled Tuesday Blitz"]
[Site "Chess.com"]
[Date "2021.03.09"]
[Round "1"]
[White "PrinceMurad09"]
[Black "tylityli"]
[Result "1-0"]
[WhiteElo "2552"]
[BlackElo "2242"]
[TimeControl "180+1"]
[EndTime "10:07:57 PST"]
[Termination "PrinceMurad09 won on time"]

1. e4 {[%clk 0:03:00.9]} 1... e5 {[%clk 0:02:41.1]} 2. Nf3 {[%clk 0:03:00.1]}
2... Nc6 {[%clk 0:02:39.2]} 3. Bc4 {[%clk 0:03:00.3]} 3... Nf6 {[%clk
0:02:38.5]} 4. O-O {[%clk 0:03:00]} 4... Nxe4 {[%clk 0:02:35.9]} 5. Re1 {[%clk
0:02:59.3]} 5... d5 {[%clk 0:02:35.2]} 6. Bf1 {[%clk 0:02:57.9]} 6... Be7 {[%clk
0:02:33.2]} 7. d3 {[%clk 0:02:57.5]} 7... Nf6 {[%clk 0:02:32.4]} 8. Nxe5 {[%clk
0:02:57.8]} 8... Nxe5 {[%clk 0:02:31.5]} 9. Rxe5 {[%clk 0:02:58.7]} 9... O-O
{[%clk 0:02:31.8]} 10. h3 {[%clk 0:02:58.7]} 10... d4 {[%clk 0:02:28.9]} 11. Re1
{[%clk 0:02:54]} 11... h6 {[%clk 0:02:27.8]} 12. Bf4 {[%clk 0:02:53.5]} 12...
Bd6 {[%clk 0:02:27.3]} 13. Qf3 {[%clk 0:02:52.7]} 13... c6 {[%clk 0:02:25.1]}
14. Nd2 {[%clk 0:02:52.5]} 14... Nd5 {[%clk 0:02:20.5]} 15. Bxd6 {[%clk
0:02:46.9]} 15... Qxd6 {[%clk 0:02:21.4]} 16. Nc4 {[%clk 0:02:47.3]} 16... Qf6
{[%clk 0:02:13.9]} 17. Qxf6 {[%clk 0:02:46.4]} 17... Nxf6 {[%clk 0:02:14.8]} 18.
g4 {[%clk 0:02:45.5]} 18... Be6 {[%clk 0:02:13.6]} 19. Bg2 {[%clk 0:02:44.7]}
19... Bxc4 {[%clk 0:02:12.3]} 20. dxc4 {[%clk 0:02:44.6]} 20... Rfe8 {[%clk
0:02:13.2]} 21. Kf1 {[%clk 0:02:43.1]} 21... Kf8 {[%clk 0:02:10.8]} 22. Red1
{[%clk 0:02:41]} 22... Rad8 {[%clk 0:02:10]} 23. Rd3 {[%clk 0:02:39.8]} 23...
Re7 {[%clk 0:02:04.3]} 24. Rad1 {[%clk 0:02:39.4]} 24... c5 {[%clk 0:02:03.7]}
25. a3 {[%clk 0:02:36.8]} 25... a5 {[%clk 0:01:59.4]} 26. Rb3 {[%clk 0:02:36.9]}
26... Ne4 {[%clk 0:01:39.8]} 27. Bxe4 {[%clk 0:02:35.6]} 27... Rxe4 {[%clk
0:01:38.5]} 28. Rxb7 {[%clk 0:02:35.6]} 28... f5 {[%clk 0:01:31]} 29. gxf5
{[%clk 0:02:35]} 29... Rf4 {[%clk 0:01:30.5]} 30. Rb5 {[%clk 0:02:26.4]} 30...
Rxf5 {[%clk 0:01:30.1]} 31. Rxa5 {[%clk 0:02:26.9]} 31... Rb8 {[%clk 0:01:27.8]}
32. b4 {[%clk 0:02:25.1]} 32... Rc8 {[%clk 0:01:24.9]} 33. Rxd4 {[%clk
0:02:21.9]} 33... cxd4 {[%clk 0:01:21.5]} 34. Rxf5+ {[%clk 0:02:21.2]} 34... Ke7
{[%clk 0:01:21.8]} 35. c5 {[%clk 0:02:22.1]} 35... Ra8 {[%clk 0:01:20.8]} 36.
Rd5 {[%clk 0:02:20.9]} 36... Rxa3 {[%clk 0:01:18]} 37. Rxd4 {[%clk 0:02:21.3]}
37... Rc3 {[%clk 0:01:16.4]} 38. Rd2 {[%clk 0:02:21.5]} 38... Rc4 {[%clk
0:01:15.7]} 39. c3 {[%clk 0:02:16.3]} 39... Rxc3 {[%clk 0:01:15.2]} 40. Rd4
{[%clk 0:02:16.9]} 40... Ke6 {[%clk 0:01:10.5]} 41. Kg2 {[%clk 0:02:16.5]} 41...
Ke5 {[%clk 0:01:10.7]} 42. Rg4 {[%clk 0:02:15.4]} 42... g5 {[%clk 0:01:08.5]}
43. Rg3 {[%clk 0:02:11.4]} 43... Rc4 {[%clk 0:01:05.6]} 44. Rb3 {[%clk
0:02:11.5]} 44... h5 {[%clk 0:01:03.7]} 45. Kf3 {[%clk 0:01:33.4]} 45... Kd5
{[%clk 0:00:43.3]} 46. Rd3+ {[%clk 0:01:28]} 46... Ke5 {[%clk 0:00:41.6]} 47.
Re3+ {[%clk 0:01:25.1]} 47... Kd5 {[%clk 0:00:33.4]} 48. Rb3 {[%clk 0:01:23.9]}
48... Rf4+ {[%clk 0:00:25.1]} 49. Kg3 {[%clk 0:01:22.5]} 49... Kc4 {[%clk
0:00:19.9]} 50. Rf3 {[%clk 0:01:18.7]} 50... Re4 {[%clk 0:00:14.2]} 51. Rf5
{[%clk 0:01:18.3]} 51... h4+ {[%clk 0:00:13.1]} 52. Kg2 {[%clk 0:01:18.2]} 52...
Kxb4 {[%clk 0:00:12.1]} 53. Rxg5 {[%clk 0:01:18.5]} 53... Kb5 {[%clk 0:00:11.5]}
54. Rg4 {[%clk 0:01:18.2]} 54... Re5 {[%clk 0:00:09.4]} 55. Rxh4 {[%clk
0:01:18.6]} 55... Kxc5 {[%clk 0:00:09.9]} 56. f4 {[%clk 0:01:18.9]} 56... Re1
{[%clk 0:00:08.2]} 57. Kf3 {[%clk 0:01:18]} 57... Kd5 {[%clk 0:00:08.2]} 58. Kg4
{[%clk 0:01:18.4]} 58... Ke6 {[%clk 0:00:07.6]} 59. Rh6+ {[%clk 0:01:18.4]}
59... Kf7 {[%clk 0:00:06]} 60. Kf5 {[%clk 0:01:18.8]} 60... Kg7 {[%clk
0:00:05.8]} 61. Ra6 {[%clk 0:01:18.6]} 61... Rh1 {[%clk 0:00:05.3]} 62. Ra3
{[%clk 0:01:15.6]} 62... Rh2 {[%clk 0:00:04.2]} 63. Kg4 {[%clk 0:01:15.3]} 63...
Rg2+ {[%clk 0:00:03.9]} 64. Rg3 {[%clk 0:01:14.9]} 64... Rf2 {[%clk 0:00:03.4]}
65. Kg5 {[%clk 0:01:14.5]} 65... Kf7 {[%clk 0:00:02.1]} 66. h4 {[%clk 0:01:15]}
66... Rh2 {[%clk 0:00:01.9]} 67. h5 {[%clk 0:01:15.3]} 67... Rh1 {[%clk
0:00:01.6]} 68. h6 {[%clk 0:01:14.9]} 68... Rh2 {[%clk 0:00:01.5]} 69. Ra3
{[%clk 0:01:12.5]} 69... Rg2+ {[%clk 0:00:01.5]} 70. Kf5 {[%clk 0:01:13]} 70...
Rh2 {[%clk 0:00:01.9]} 71. Ra7+ {[%clk 0:01:12.9]} 71... Kg8 {[%clk 0:00:02.1]}
72. Kg5 {[%clk 0:01:12.1]} 72... Kf8 {[%clk 0:00:01.5]} 73. h7 {[%clk
0:01:10.4]} 1-0

[Event "*** Titled Tuesday Blitz"]
[Site "Chess.com"]
[Date "2021.03.09"]
[Round "1"]
[White "Maddie"]
[Black "KacperPolOK"]
[Result "0-1"]
[WhiteElo "2071"]
[BlackElo "2502"]
[TimeControl "180+1"]
[EndTime "10:08:00 PST"]
[Termination "KacperPolOK won by checkmate"]

1. d4 {[%clk 0:02:51.8]} 1... e6 {[%clk 0:02:59.3]} 2. c4 {[%clk 0:02:50.7]}
2... f5 {[%clk 0:02:57.3]} 3. Nc3 {[%clk 0:02:50.7]} 3... Nf6 {[%clk 0:02:57.4]}
4. Nf3 {[%clk 0:02:32.7]} 4... Bb4 {[%clk 0:02:56]} 5. Bd2 {[%clk 0:02:30.9]}
5... b6 {[%clk 0:02:52.6]} 6. e3 {[%clk 0:02:09.1]} 6... Bb7 {[%clk 0:02:46.5]}
7. Be2 {[%clk 0:02:01.2]} 7... O-O {[%clk 0:02:45.8]} 8. O-O {[%clk 0:02:00]}
8... d6 {[%clk 0:02:43.8]} 9. a3 {[%clk 0:01:59.4]} 9... Bxc3 {[%clk 0:02:43.7]}
10. Bxc3 {[%clk 0:01:53.4]} 10... Nbd7 {[%clk 0:02:43.1]} 11. b4 {[%clk
0:01:53.2]} 11... Qe7 {[%clk 0:02:30.2]} 12. Qb3 {[%clk 0:01:52.8]} 12... c5
{[%clk 0:02:17.1]} 13. dxc5 {[%clk 0:01:52]} 13... dxc5 {[%clk 0:02:16.4]} 14.
b5 {[%clk 0:01:51.4]} 14... e5 {[%clk 0:02:11.2]} 15. Rfd1 {[%clk 0:01:43.1]}
15... Rfd8 {[%clk 0:01:59.5]} 16. Rd2 {[%clk 0:01:37.6]} 16... e4 {[%clk
0:01:59]} 17. Ne1 {[%clk 0:01:34.3]} 17... Ne5 {[%clk 0:01:46.4]} 18. Rad1
{[%clk 0:01:32.1]} 18... Neg4 {[%clk 0:01:32.1]} 19. h3 {[%clk 0:01:25.2]} 19...
Ne5 {[%clk 0:01:30]} 20. Qb2 {[%clk 0:01:23.7]} 20... Nf7 {[%clk 0:01:14.4]} 21.
Bxf6 {[%clk 0:01:20.3]} 21... Qxf6 {[%clk 0:01:14.5]} 22. Qxf6 {[%clk 0:01:20]}
22... gxf6 {[%clk 0:01:14.7]} 23. Rxd8+ {[%clk 0:01:19.4]} 23... Rxd8 {[%clk
0:01:15.6]} 24. Rxd8+ {[%clk 0:01:19.2]} 24... Nxd8 {[%clk 0:01:16.5]} 25. g3
{[%clk 0:01:09]} 25... Nf7 {[%clk 0:01:16.1]} 26. Ng2 {[%clk 0:01:08.6]} 26...
Ne5 {[%clk 0:01:14.1]} 27. Nf4 {[%clk 0:01:06.8]} 27... Kf7 {[%clk 0:01:14.2]}
28. Bh5+ {[%clk 0:01:03.4]} 28... Ng6 {[%clk 0:01:09.5]} 29. Bxg6+ {[%clk
0:00:56.8]} 29... hxg6 {[%clk 0:01:09.6]} 30. Kf1 {[%clk 0:00:56.2]} 30... g5
{[%clk 0:01:09.5]} 31. Ng2 {[%clk 0:00:56.2]} 31... Bc8 {[%clk 0:01:06.4]} 32.
Ke2 {[%clk 0:00:55.8]} 32... Be6 {[%clk 0:01:06.1]} 33. h4 {[%clk 0:00:41.6]}
33... Bxc4+ {[%clk 0:01:03.6]} 34. Kd2 {[%clk 0:00:41.5]} 34... Bxb5 {[%clk
0:01:03.7]} 35. hxg5 {[%clk 0:00:38.1]} 35... fxg5 {[%clk 0:01:03.8]} 36. Ne1
{[%clk 0:00:38]} 36... Ba4 {[%clk 0:01:00.2]} 37. Ng2 {[%clk 0:00:35.9]} 37...
Kf6 {[%clk 0:01:00.2]} 38. Kc3 {[%clk 0:00:35.2]} 38... b5 {[%clk 0:00:59.9]}
39. Ne1 {[%clk 0:00:31.5]} 39... a5 {[%clk 0:00:59.6]} 40. f4 {[%clk 0:00:29.7]}
40... exf3 {[%clk 0:00:47.9]} 41. Nxf3 {[%clk 0:00:29.1]} 41... Bd1 {[%clk
0:00:46.3]} 42. Nd2 {[%clk 0:00:26.7]} 42... Be2 {[%clk 0:00:46]} 43. Nb3 {[%clk
0:00:24.6]} 43... b4+ {[%clk 0:00:46.2]} 44. axb4 {[%clk 0:00:24.5]} 44... cxb4+
{[%clk 0:00:38.6]} 45. Kd2 {[%clk 0:00:23.6]} 45... a4 {[%clk 0:00:38.1]} 46.
Nc5 {[%clk 0:00:21.4]} 46... Bb5 {[%clk 0:00:34.6]} 47. Kc2 {[%clk 0:00:19.3]}
47... Ke5 {[%clk 0:00:33.3]} 48. Kd2 {[%clk 0:00:19.3]} 48... Kd5 {[%clk
0:00:31.9]} 49. Nb7 {[%clk 0:00:18.2]} 49... Bc4 {[%clk 0:00:24.5]} 50. Na5
{[%clk 0:00:17.9]} 50... Kc5 {[%clk 0:00:23]} 51. Nb7+ {[%clk 0:00:17.4]} 51...
Kd5 {[%clk 0:00:21.4]} 52. Nd8 {[%clk 0:00:18.3]} 52... a3 {[%clk 0:00:19.1]}
53. Kc2 {[%clk 0:00:17.6]} 53... b3+ {[%clk 0:00:19.6]} 54. Kc3 {[%clk 0:00:17]}
54... b2 {[%clk 0:00:18.7]} 55. Kc2 {[%clk 0:00:16.8]} 55... Bd3+ {[%clk
0:00:18.8]} 56. Kxd3 {[%clk 0:00:17.4]} 56... b1=Q+ {[%clk 0:00:18.9]} 57. Ke2
{[%clk 0:00:18.3]} 57... a2 {[%clk 0:00:19]} 58. Kf3 {[%clk 0:00:19.2]} 58...
Qe4+ {[%clk 0:00:19]} 59. Kf2 {[%clk 0:00:20.1]} 59... a1=Q {[%clk 0:00:19.3]}
60. Nc6 {[%clk 0:00:19.4]} 60... Qa2+ {[%clk 0:00:19.5]} 61. Kg1 {[%clk
0:00:17.4]} 61... Qeb1# {[%clk 0:00:20.4]} 0-1

[Event "*** Titled Tuesday Blitz"]
[Site "Chess.com"]
[Date "2021.03.09"]
[Round "1"]
[White "BegmuratovKh2010"]
[Black "Fraler15"]
[Result "1-0"]
[WhiteElo "2570"]
[BlackElo "2266"]
[TimeControl "180+1"]
[EndTime "10:08:01 PST"]
[Termination "BegmuratovKh2010 won on time"]

1. e4 {[%clk 0:03:00.9]} 1... c5 {[%clk 0:02:59.4]} 2. Nc3 {[%clk 0:03:00.1]}
2... Nc6 {[%clk 0:02:59.1]} 3. g3 {[%clk 0:03:00.6]} 3... g6 {[%clk 0:02:59.1]}
4. Bg2 {[%clk 0:03:01.1]} 4... Bg7 {[%clk 0:02:59.2]} 5. d3 {[%clk 0:03:01.7]}
5... e6 {[%clk 0:02:55.5]} 6. f4 {[%clk 0:03:02.1]} 6... Nge7 {[%clk 0:02:54.4]}
7. Nf3 {[%clk 0:03:00.7]} 7... d5 {[%clk 0:02:54.3]} 8. O-O {[%clk 0:02:58.4]}
8... O-O {[%clk 0:02:53.6]} 9. Qe2 {[%clk 0:02:42.4]} 9... Rb8 {[%clk 0:02:53]}
10. a4 {[%clk 0:02:41.1]} 10... a6 {[%clk 0:02:49.4]} 11. g4 {[%clk 0:02:25.2]}
11... b5 {[%clk 0:02:44.8]} 12. axb5 {[%clk 0:02:25]} 12... axb5 {[%clk
0:02:44.9]} 13. e5 {[%clk 0:02:20.7]} 13... Qb6 {[%clk 0:02:33.2]} 14. Kh1
{[%clk 0:02:15.4]} 14... Nd4 {[%clk 0:02:32.8]} 15. Nxd4 {[%clk 0:02:14.4]}
15... cxd4 {[%clk 0:02:33.1]} 16. Nd1 {[%clk 0:02:15.3]} 16... Bd7 {[%clk
0:02:28.9]} 17. Bd2 {[%clk 0:02:00.6]} 17... Rbc8 {[%clk 0:02:25.4]} 18. Bb4
{[%clk 0:01:59.5]} 18... Rfe8 {[%clk 0:02:22.1]} 19. Nf2 {[%clk 0:01:53.6]}
19... Qc6 {[%clk 0:02:05.5]} 20. Rac1 {[%clk 0:01:48.1]} 20... Ra8 {[%clk
0:02:02.9]} 21. Bxe7 {[%clk 0:01:41]} 21... Rxe7 {[%clk 0:02:02.1]} 22. g5
{[%clk 0:01:41.9]} 22... Ree8 {[%clk 0:01:37.1]} 23. Ng4 {[%clk 0:01:40.8]}
23... Rec8 {[%clk 0:01:34.3]} 24. Nf6+ {[%clk 0:01:38]} 24... Bxf6 {[%clk
0:01:24.8]} 25. gxf6 {[%clk 0:01:38.9]} 25... Qc5 {[%clk 0:01:24.7]} 26. Qf2
{[%clk 0:01:17.7]} 26... Ra2 {[%clk 0:01:22.2]} 27. Qh4 {[%clk 0:01:13.4]} 27...
Rxb2 {[%clk 0:01:14.8]} 28. Rf3 {[%clk 0:01:12.6]} 28... Qf8 {[%clk 0:00:53.8]}
29. f5 {[%clk 0:00:55.2]} 29... Rbxc2 {[%clk 0:00:31.3]} 30. Rg1 {[%clk
0:00:44.7]} 30... exf5 {[%clk 0:00:21]} 31. Rh3 {[%clk 0:00:40.5]} 31... h5
{[%clk 0:00:20.2]} 32. Bxd5 {[%clk 0:00:38.6]} 32... Rc1 {[%clk 0:00:19]} 33.
Rg3 {[%clk 0:00:28]} 33... Rxg1+ {[%clk 0:00:18.6]} 34. Rxg1 {[%clk 0:00:28.9]}
34... Kh7 {[%clk 0:00:17.2]} 35. Qxd4 {[%clk 0:00:20.1]} 35... Bc6 {[%clk
0:00:17.1]} 36. Bxc6 {[%clk 0:00:17.3]} 36... Rxc6 {[%clk 0:00:18]} 37. Qd5
{[%clk 0:00:18.2]} 37... Rc8 {[%clk 0:00:12.1]} 38. d4 {[%clk 0:00:15.4]} 38...
Qe8 {[%clk 0:00:12.2]} 39. Qg2 {[%clk 0:00:14.9]} 39... Qc6 {[%clk 0:00:11.6]}
40. d5 {[%clk 0:00:14.4]} 40... Qe8 {[%clk 0:00:09.1]} 41. e6 {[%clk 0:00:13.4]}
41... Rc4 {[%clk 0:00:07.4]} 42. e7 {[%clk 0:00:10]} 42... Qd7 {[%clk
0:00:04.9]} 43. d6 {[%clk 0:00:08.6]} 43... Rg4 {[%clk 0:00:03.5]} 44. Qa8
{[%clk 0:00:07.8]} 44... Rxg1+ {[%clk 0:00:03]} 45. Kxg1 {[%clk 0:00:08.7]}
45... Qxd6 {[%clk 0:00:02.3]} 46. e8=Q {[%clk 0:00:05.8]} 46... Qd1+ {[%clk
0:00:01.6]} 47. Kf2 {[%clk 0:00:05.6]} 47... Qd2+ {[%clk 0:00:01.1]} 48. Kf3
{[%clk 0:00:05.7]} 48... Qf4+ {[%clk 0:00:01.8]} 49. Kxf4 {[%clk 0:00:05.1]} 1-0

[Event "*** Titled Tuesday Blitz"]
[Site "Chess.com"]
[Date "2021.03.09"]
[Round "1"]
[White "thisunaa"]
[Black "Sergey85Rodchenkov"]
[Result "0-1"]
[WhiteElo "1978"]
[BlackElo "2493"]
[TimeControl "180+1"]
[EndTime "10:08:02 PST"]
[Termination "Sergey85Rodchenkov won by resignation"]

1. e4 {[%clk 0:02:59.3]} 1... c5 {[%clk 0:02:59.5]} 2. Nf3 {[%clk 0:02:58.9]}
2... d6 {[%clk 0:02:53.6]} 3. d4 {[%clk 0:02:57.7]} 3... cxd4 {[%clk 0:02:54.1]}
4. Nxd4 {[%clk 0:02:57.7]} 4... Nf6 {[%clk 0:02:54.6]} 5. Nc3 {[%clk 0:02:55.7]}
5... a6 {[%clk 0:02:55]} 6. Bg5 {[%clk 0:02:42.5]} 6... Nbd7 {[%clk 0:02:52.7]}
7. Bc4 {[%clk 0:02:41.7]} 7... e6 {[%clk 0:02:51.3]} 8. Bb3 {[%clk 0:02:38.7]}
8... b5 {[%clk 0:02:49.8]} 9. a3 {[%clk 0:02:06.5]} 9... Qc7 {[%clk 0:02:45.8]}
10. Qd2 {[%clk 0:02:06.1]} 10... Bb7 {[%clk 0:02:43.6]} 11. f3 {[%clk 0:02:06]}
11... Nc5 {[%clk 0:02:39.1]} 12. O-O {[%clk 0:01:54.9]} 12... Be7 {[%clk
0:02:38.6]} 13. Rad1 {[%clk 0:01:49.8]} 13... O-O {[%clk 0:02:37.3]} 14. Be3
{[%clk 0:01:49.6]} 14... Nxb3 {[%clk 0:02:29.2]} 15. Nxb3 {[%clk 0:01:48]} 15...
Rac8 {[%clk 0:02:26.7]} 16. Qf2 {[%clk 0:01:42.2]} 16... d5 {[%clk 0:02:22.8]}
17. Bb6 {[%clk 0:01:18.9]} 17... Qb8 {[%clk 0:02:22.4]} 18. exd5 {[%clk
0:01:12.1]} 18... Nxd5 {[%clk 0:02:21.2]} 19. Nxd5 {[%clk 0:01:10.3]} 19... Bxd5
{[%clk 0:02:21.2]} 20. Bc5 {[%clk 0:00:58.1]} 20... Qc7 {[%clk 0:02:01.8]} 21.
Bxe7 {[%clk 0:00:53.4]} 21... Qxe7 {[%clk 0:02:01.3]} 22. Rd2 {[%clk 0:00:47]}
22... Rc7 {[%clk 0:01:54.6]} 23. Re1 {[%clk 0:00:47]} 23... Qf6 {[%clk
0:01:50.9]} 24. Nd4 {[%clk 0:00:45.2]} 24... h6 {[%clk 0:01:45.1]} 25. c3 {[%clk
0:00:45.2]} 25... Rb8 {[%clk 0:01:44.5]} 26. Nc2 {[%clk 0:00:43.5]} 26... a5
{[%clk 0:01:42.6]} 27. Ne3 {[%clk 0:00:43.3]} 27... Bb3 {[%clk 0:01:41.5]} 28.
Ng4 {[%clk 0:00:39.7]} 28... Qe7 {[%clk 0:01:20.5]} 29. Qg3 {[%clk 0:00:39.5]}
29... Kh7 {[%clk 0:01:19.3]} 30. Qe5 {[%clk 0:00:37.8]} 30... Rd8 {[%clk
0:01:08]} 31. Rxd8 {[%clk 0:00:37.2]} 31... Qxd8 {[%clk 0:01:08]} 32. Qe3 {[%clk
0:00:35.7]} 32... f6 {[%clk 0:00:56.6]} 33. Nf2 {[%clk 0:00:30.8]} 33... e5
{[%clk 0:00:53.5]} 34. Ne4 {[%clk 0:00:31]} 34... Qd5 {[%clk 0:00:47.4]} 35. Nd2
{[%clk 0:00:30.1]} 35... Bc2 {[%clk 0:00:45]} 36. Rc1 {[%clk 0:00:28.2]} 36...
Bg6 {[%clk 0:00:43.7]} 37. Rd1 {[%clk 0:00:27.8]} 37... Rd7 {[%clk 0:00:43.6]}
38. c4 {[%clk 0:00:18.2]} 38... bxc4 {[%clk 0:00:42.7]} 39. Kf2 {[%clk 0:00:17]}
39... Bc2 {[%clk 0:00:41.7]} 40. Ke1 {[%clk 0:00:16.1]} 40... Bxd1 {[%clk
0:00:41.3]} 41. Kxd1 {[%clk 0:00:15.7]} 41... Qd3 {[%clk 0:00:41.1]} 42. Qxd3+
{[%clk 0:00:15.4]} 42... cxd3 {[%clk 0:00:40.7]} 43. Ke1 {[%clk 0:00:15.5]}
43... f5 {[%clk 0:00:40.8]} 44. Kf2 {[%clk 0:00:15.7]} 44... g5 {[%clk
0:00:40.9]} 45. Ke3 {[%clk 0:00:15.8]} 45... Kg6 {[%clk 0:00:40.3]} 46. Nc4
{[%clk 0:00:15.6]} 46... Kf6 {[%clk 0:00:39.7]} 47. Kd2 {[%clk 0:00:15.4]} 47...
e4 {[%clk 0:00:37.5]} 48. fxe4 {[%clk 0:00:15.1]} 48... fxe4 {[%clk 0:00:37.7]}
49. Ne3 {[%clk 0:00:16]} 49... Rb7 {[%clk 0:00:35.4]} 50. g4 {[%clk 0:00:16.9]}
50... Rxb2+ {[%clk 0:00:34.4]} 51. Kc3 {[%clk 0:00:17.8]} 51... Rxh2 {[%clk
0:00:33.8]} 52. Kd4 {[%clk 0:00:18.2]} 52... Re2 {[%clk 0:00:32.3]} 53. Kxe4
{[%clk 0:00:16.1]} 53... d2 {[%clk 0:00:31.2]} 54. Kd3 {[%clk 0:00:16.5]} 54...
Rxe3+ {[%clk 0:00:31.5]} 55. Kxd2 {[%clk 0:00:15.2]} 55... Rxa3 {[%clk
0:00:31.2]} 56. Ke2 {[%clk 0:00:16.1]} 56... Ke5 {[%clk 0:00:30.9]} 57. Kf2
{[%clk 0:00:17]} 57... Kd4 {[%clk 0:00:30.5]} 58. Kg2 {[%clk 0:00:17.9]} 58...
Rc3 {[%clk 0:00:30.8]} 59. Kf2 {[%clk 0:00:18.8]} 59... a4 {[%clk 0:00:31]} 60.
Ke2 {[%clk 0:00:19.7]} 60... a3 {[%clk 0:00:31.2]} 61. Kd2 {[%clk 0:00:20.6]}
61... a2 {[%clk 0:00:31.6]} 0-1

[Event "*** Titled Tuesday Blitz"]
[Site "Chess.com"]
[Date "2021.03.09"]
[Round "1"]
[White "Fandorin779"]
[Black "enriquebutti"]
[Result "0-1"]
[WhiteElo "2504"]
[BlackElo "2204"]
[TimeControl "180+1"]
[EndTime "10:08:03 PST"]
[Termination "enriquebutti won on time"]

1. c4 {[%clk 0:03:00.3]} 1... e5 {[%clk 0:02:59.1]} 2. b3 {[%clk 0:02:59.9]}
2... Nc6 {[%clk 0:02:58]} 3. Bb2 {[%clk 0:03:00.4]} 3... d6 {[%clk 0:02:56]} 4.
Nc3 {[%clk 0:03:00.7]} 4... g6 {[%clk 0:02:55.1]} 5. g3 {[%clk 0:02:59.9]} 5...
Bg7 {[%clk 0:02:54.6]} 6. Bg2 {[%clk 0:03:00.5]} 6... f5 {[%clk 0:02:54]} 7. e3
{[%clk 0:03:00.7]} 7... Nf6 {[%clk 0:02:53.5]} 8. Nge2 {[%clk 0:03:00.6]} 8...
O-O {[%clk 0:02:48.7]} 9. d4 {[%clk 0:03:00.3]} 9... e4 {[%clk 0:02:47.1]} 10.
O-O {[%clk 0:02:58.9]} 10... Nb4 {[%clk 0:02:40.6]} 11. Nf4 {[%clk 0:02:52.8]}
11... g5 {[%clk 0:02:39.2]} 12. Nfd5 {[%clk 0:02:50.2]} 12... Nfxd5 {[%clk
0:02:38]} 13. Nxd5 {[%clk 0:02:50.3]} 13... Nd3 {[%clk 0:02:36.3]} 14. Bc3
{[%clk 0:02:49.8]} 14... c6 {[%clk 0:02:35.4]} 15. Nb4 {[%clk 0:02:49.4]} 15...
Nxb4 {[%clk 0:02:29.1]} 16. Bxb4 {[%clk 0:02:50.3]} 16... Rf7 {[%clk 0:02:28.1]}
17. Bc3 {[%clk 0:02:49.5]} 17... d5 {[%clk 0:02:27.7]} 18. f3 {[%clk 0:02:46.4]}
18... Be6 {[%clk 0:02:26.2]} 19. Qd2 {[%clk 0:02:39.5]} 19... Qd7 {[%clk
0:02:25.1]} 20. Rf2 {[%clk 0:02:27.4]} 20... exf3 {[%clk 0:02:24.2]} 21. Bxf3
{[%clk 0:02:25.9]} 21... dxc4 {[%clk 0:02:22.9]} 22. bxc4 {[%clk 0:02:23.3]}
22... Bxc4 {[%clk 0:02:22.1]} 23. Bh5 {[%clk 0:02:23.2]} 23... Re7 {[%clk
0:02:15]} 24. Bb4 {[%clk 0:02:14.4]} 24... Re4 {[%clk 0:02:07.2]} 25. Qc3 {[%clk
0:02:10.1]} 25... Bd5 {[%clk 0:02:04.7]} 26. Raf1 {[%clk 0:02:09.2]} 26... f4
{[%clk 0:01:54.1]} 27. gxf4 {[%clk 0:02:04.6]} 27... gxf4 {[%clk 0:01:53.5]} 28.
exf4 {[%clk 0:02:00.4]} 28... Rxd4 {[%clk 0:01:42.7]} 29. Qg3 {[%clk 0:01:58.1]}
29... Kh8 {[%clk 0:01:40]} 30. Bc3 {[%clk 0:01:56.4]} 30... Re4 {[%clk
0:01:38.1]} 31. Rg2 {[%clk 0:01:43.4]} 31... Re7 {[%clk 0:01:31.9]} 32. f5
{[%clk 0:01:40.9]} 32... Bxg2 {[%clk 0:01:25.3]} 33. f6 {[%clk 0:01:37.5]} 33...
Bxf1 {[%clk 0:01:21.1]} 34. f7 {[%clk 0:01:07.2]} 34... Rxf7 {[%clk 0:01:12.5]}
35. Bg4 {[%clk 0:00:58.1]} 35... Qd1 {[%clk 0:01:04.7]} 36. Bxd1 {[%clk
0:00:54.2]} 36... Rg8 {[%clk 0:01:01.3]} 37. Bg4 {[%clk 0:00:44.7]} 37... Bc4
{[%clk 0:00:48.3]} 38. h3 {[%clk 0:00:35.6]} 38... Bd5 {[%clk 0:00:45.2]} 39.
Kh2 {[%clk 0:00:31.4]} 39... Rf1 {[%clk 0:00:37.8]} 40. Bxg7+ {[%clk 0:00:30.1]}
40... Rxg7 {[%clk 0:00:36.2]} 41. Qb8+ {[%clk 0:00:29.8]} 41... Rg8 {[%clk
0:00:35]} 42. Qe5+ {[%clk 0:00:30.3]} 42... Rg7 {[%clk 0:00:33.2]} 43. Kg3
{[%clk 0:00:11.2]} 43... Rg1+ {[%clk 0:00:30.4]} 44. Kh4 {[%clk 0:00:11]} 44...
Bg8 {[%clk 0:00:24.3]} 45. Kh5 {[%clk 0:00:10.5]} 45... Rf1 {[%clk 0:00:19.4]}
46. Kh6 {[%clk 0:00:09.4]} 46... Rf7 {[%clk 0:00:17.9]} 47. Be6 {[%clk
0:00:06.7]} 47... Re7 {[%clk 0:00:16.9]} 48. Qf6 {[%clk 0:00:02.3]} 48... Bxe6
{[%clk 0:00:13.1]} 0-1